Cogmind - Beta 9.6 @@@ ROGUE MODE // 2020.09.06 @ 19:44:10 Player: Finestep Result: Destroyed by S-27 Virus with Autogun Performance ------------- Evolutions (5) 2500 Regions Visited (20) 4000 Robots Destroyed (413) 2065 Value Destroyed (16022) 16022 Prototype IDs (63) 1260 Alien Tech Used (0) 0 Bonus (6564) 6564 TOTAL SCORE: 32411 Bonus ------- High Alert Combat Kills 2523 Follower Combat Kills 1323 Entered Garrisons 800 Used RIF Installer 2000 Aligned with FarCom 300 Met Data Miner 300 Friendly Fire -682 Cogmind --------- Core Integrity 0/1000 Matter 24/300 Energy 37/170 System Corruption 31% Temperature Cool (0) Movement Treading (200) Ox2 Location -5/Garrison Parts ------- > --- POWER (2) -------- Micro Fission Core > --- PROPULSION (3) --- Heavy Treads Carbon-fiber Leg > --- UTILITY (10) ----- Advanced Heat Sink Large Storage Unit High-capacity Storage Unit High-capacity Storage Unit High-capacity Storage Unit Advanced Targeting Computer Improved Core Analyzer Improved Armor Integrity Analyzer Powered Armor Relay Coupler [Sentry] (9) > --- WEAPON (2) ------- Long-range Proton Cannon Mass Driver > --- INVENTORY (34) --- Light Angular Momentum Engine Heavy Treads Advanced Power Amplifier Improved Coolant Injector Large Battery (300) Large Battery (300) Matter Compressor (250) Advanced Terrain Scanner Advanced Particle Charger Quantum Capacitor Improved Powered Armor Improved Powered Armor Relay Coupler [NC] (29) Relay Coupler [NC] (25) Relay Coupler [Brawler] (21) Relay Coupler [Duelist] (31) Relay Coupler [Sentry] (19) Relay Coupler [Sentry] (27) Relay Coupler [Demolisher] (23) Relay Coupler [Hunter] (10) Relay Coupler [Hunter] (19) Relay Coupler [Hunter] (18) Long-range Proton Cannon Guided Plasma Cannon 8R-AWN's Boregun 8R-AWN's Boregun Mass Driver Mass Driver Improved Remote Datajack Improved Remote Datajack Peak State ------------ > --- POWER ------------ Micro Fission Core Light Antimatter Reactor > --- PROPULSION ------- Carbon-fiber Leg Flexi-carbon Leg Experimental Flexi-carbon Leg > --- UTILITY ---------- Advanced Heat Sink High-capacity Storage Unit High-capacity Storage Unit High-capacity Storage Unit Advanced Targeting Computer Improved Core Analyzer Improved Armor Integrity Analyzer Quantum Capacitor Layered Medium Armor Plating > --- WEAPON ----------- Disruptor Cannon KE Penetrator > --- INVENTORY -------- Micro Fission Core Carbon-fiber Leg Flexi-carbon Leg Advanced Power Amplifier Advanced Heat Sink Advanced Heat Sink Matter Compressor Advanced Particle Charger Improved Medium Armor Plating Medium Reflective Plating Improved Powered Armor Improved Powered Armor Relay Coupler [Swarmer] Relay Coupler [Brawler] Relay Coupler [Demolisher] Relay Coupler [Demolisher] Relay Coupler [Hunter] Guided Plasma Cannon KE Penetrator KE Penetrator 8R-AWN's Boregun 8R-AWN's Boregun Magnetic Acceleration Cannon Smartbomb Launcher Improved Remote Datajack Master Tearclaws [Rating: 98] Favorites ----------- Power Light Angular Momentum Engine Engine Light Angular Momentum Engine Power Core Micro Fission Core Reactor Light Antimatter Reactor Propulsion Light Treads Treads Light Treads Leg Carbon-fiber Leg Wheel Armored Huge Wheel Utility Large Storage Unit Device Advanced Heat Sink Storage Large Storage Unit Processor Advanced Targeting Computer Hackware Relay Coupler [Grunt] Protection Improved Light Armor Plating Weapon Autogun Energy Gun Medium Laser Energy Cannon Compact Ion Cannon Ballistic Gun Autogun Ballistic Cannon Gauss Cannon Launcher Heavy Missile Launcher Special Weapon Remote Datajack Slashing Weapon Chainsword Build | -11 -10 -10 -9 -9 -9 -8 -8 -8 -7 -7 -7 -6 -6 -6 -6 -5 -5 -5 -5 -5 ------- Run | Scr Mat Min Mat Min Exi Min Mat Gar Fac Gar Fac Fac Low Low Dat Pro Fac Gar Fac Gar Slots Evolved 10 | . . . 2 . . . 2 . 2 . . 2 . . . . 2 . . . Power 1 | . . . . . . . . . 1 . . . . . . . . . . . Propulsion 1 | . . . . . . . . . . . . . . . . . 1 . . . Utility 8 | . . . 2 . . . 2 . 1 . . 2 . . . . 1 . . . Weapon . | . . . . . . . . . . . . . . . . . . . . . Parts Attached 582 | 7 22 . 20 3 36 . 48 26 40 29 17 82 6 13 12 23 70 54 55 19 Power 63 | 1 1 . 2 . 2 . 2 3 8 4 2 9 1 1 . 2 5 9 9 2 Engine 31 | 1 1 . 2 . . . 2 3 4 3 2 3 1 1 . . 2 4 1 1 Core 27 | . . . . . 2 . . . 4 1 . 6 . . . 1 2 2 8 1 Reactor 5 | . . . . . . . . . . . . . . . . 1 1 3 . . Propulsion 79 | 2 3 . 5 . 7 . 10 4 4 4 2 5 . 1 . 4 13 10 4 1 Treads 42 | 2 2 . 5 . 6 . 10 . . 1 2 2 . 1 . 3 4 1 3 . Leg 18 | . . . . . 1 . . 4 1 . . . . . . 1 1 8 1 1 Wheel 19 | . 1 . . . . . . . 3 3 . 3 . . . . 8 1 . . Hover . | . . . . . . . . . . . . . . . . . . . . . Flight . | . . . . . . . . . . . . . . . . . . . . . Utility 188 | 2 2 . 5 2 13 . 15 9 11 10 9 30 3 3 7 5 29 13 13 7 Device 61 | . . . 1 . 3 . 3 1 3 3 2 12 2 2 4 3 10 6 2 4 Storage 28 | 2 2 . 1 . 4 . 4 1 1 1 1 6 . . . . 3 1 . 1 Processor 14 | . . . . . . . . . 3 . . 1 1 . 3 1 3 1 1 . Hackware 28 | . . . . . . . . 2 1 1 3 9 . 1 . . 6 1 4 . Protection 57 | . . . 3 2 6 . 8 5 3 5 3 2 . . . 1 7 4 6 2 Artifact . | . . . . . . . . . . . . . . . . . . . . . Weapon 252 | 2 16 . 8 1 14 . 21 10 17 11 4 38 2 8 5 12 23 22 29 9 Energy Gun 3 | . 1 . . . . . . . . . . . . . . 2 . . . . Energy Cannon 70 | . . . . . . . 4 4 7 . 1 13 . 5 2 4 3 9 13 5 Ballistic Gun 84 | 2 10 . 7 1 13 . 15 3 7 5 . 11 1 1 . 2 . 6 . . Ballistic Cannon 31 | . . . . . . . 1 . 1 3 . . . . . 1 11 3 8 3 Launcher 16 | . 2 . 1 . 1 . 1 2 . 2 . 2 . . 1 3 1 . . . Special Weapon 41 | . 3 . . . . . . 1 2 . 2 10 1 2 1 . 6 4 8 1 Impact Weapon . | . . . . . . . . . . . . . . . . . . . . . Slashing Weapon 7 | . . . . . . . . . . 1 1 2 . . 1 . 2 . . . Piercing Weapon . | . . . . . . . . . . . . . . . . . . . . . Special Melee Weapon . | . . . . . . . . . . . . . . . . . . . . . Unidentified Prototypes 11 | . . . . . 5 . 2 . . . . 2 . . . . 2 . . . Parts Lost 130 | . 5 . 7 2 6 . 10 8 2 14 . 12 1 2 . 20 19 10 5 7 Power 26 | . 1 . 2 . 1 . . 2 1 1 . 4 . . . 3 3 4 1 3 Propulsion 27 | . 1 . 3 . 1 . . 3 . 3 . 1 . . . 4 9 1 1 . Utility 40 | . . . 1 1 2 . 5 2 1 5 . 7 1 . . 6 4 1 2 2 Weapon 37 | . 3 . 1 1 2 . 5 1 . 5 . . . 2 . 7 3 4 1 2 Highest Loss Streak 6 | . 1 . 3 2 6 . 2 3 1 5 . 4 1 2 . 6 4 3 3 3 Average Slot Usage (%) 94 | . 98 100 96 100 99 100 97 80 94 92 99 95 100 99 99 83 92 98 94 90 Engine 6 | . 13 14 10 11 4 . 6 8 4 10 14 5 10 12 13 4 1 4 1 3 Core 3 | . . . . . 6 11 2 . 9 3 . 6 1 . . 4 2 2 8 6 Treads 9 | . 21 28 21 22 22 22 18 3 . . 12 6 13 13 13 10 5 2 3 5 Leg 2 | . . . . . . . . 7 4 . . . . . . . 1 13 7 3 Wheel 2 | . 5 . . . . . . . 5 11 1 3 . . . . 7 . . . Device 7 | . . . 1 . . . 10 1 3 2 2 15 25 22 20 16 9 7 2 4 Storage 24 | . 28 28 32 33 23 22 24 31 30 30 25 20 20 20 20 20 17 19 23 23 Processor 6 | . . . . . . . . . 6 7 7 2 . 6 11 9 17 18 16 17 Hackware 4 | . . . . . . . . . . 2 9 13 12 10 7 . 7 3 10 5 Protection 7 | . . . 6 11 20 22 16 9 8 6 7 6 . . . 2 4 6 3 5 Energy Cannon 3 | . . . . . . . 1 7 4 . . 6 5 9 11 7 . 4 4 4 Ballistic Gun 8 | . 20 28 22 22 21 22 16 7 3 9 5 5 3 2 . 2 . 3 . . Ballistic Cannon 1 | . . . . . . . . . 5 3 . . . . . . 7 1 5 5 Naked Turns . | . . . . . . . . . . . . . . . . . . . . . Heaviest Build 180 | 14 43 43 57 57 78 75 85 94 103 113 96 129 135 135 136 140 157 167 180 168 Greatest Support 70 | 40 40 40 40 40 40 40 42 40 28 28 56 56 52 52 52 52 53 63 70 70 Greatest Overweight (x) 37 | . 4 1 1 1 2 1 2 22 10 7 7 7 2 2 2 6 37 13 2 2 Average Overweight (x) 2 | . 1 1 1 1 . 1 1 5 3 3 2 2 2 2 2 2 6 2 1 1 Largest Inventory Capacity 34 | 8 16 16 20 20 22 16 28 28 28 34 28 28 28 28 28 28 28 34 34 34 Average Capacity 24 | 6 15 16 19 20 16 16 20 25 28 28 24 24 28 28 28 28 28 29 34 34 Most Carried 34 | 6 16 16 20 20 22 16 28 28 28 29 28 28 28 28 28 25 28 34 34 34 Average Carried 23 | 2 12 15 19 19 15 16 19 24 27 25 24 23 27 26 25 21 26 28 33 31 Final Capacity 34 | 8 16 16 20 20 16 16 28 28 28 28 22 28 28 28 28 28 28 34 34 34 Final Carried 34 | 6 16 16 20 19 16 16 28 28 27 28 22 28 26 28 25 18 28 34 32 32 Class Distribution -------------------- 39% | Bothacker-Mutant 38% | Hauler-Mutant 15% | Scavenger-Mutant 5% | Mutant Dominant Class ---------------- Mutant | -10/Materials Mutant | -10/Mines Hauler-Mutant | -9/Materials Hauler-Mutant | -9/Mines Scavenger-Mutant | -9/Exiles Scavenger-Mutant | -8/Mines Scavenger-Mutant | -8/Materials Hauler-Mutant | -8/Garrison Hauler-Mutant | -7/Factory Bothacker-Mutant | -7/Garrison Bothacker-Mutant | -7/Factory Bothacker-Mutant | -6/Factory Bothacker-Mutant | -6/Lower Caves Hauler-Mutant | -6/Lower Caves Hauler-Mutant | -6/Data Miner Hauler-Mutant | -5/Proximity Caves Hauler-Mutant | -5/Factory Bothacker-Mutant | -5/Garrison Bothacker-Mutant | -5/Factory Bothacker-Mutant | -5/Garrison Resources | -11 -10 -10 -9 -9 -9 -8 -8 -8 -7 -7 -7 -6 -6 -6 -6 -5 -5 -5 -5 -5 ----------- Run | Scr Mat Min Mat Min Exi Min Mat Gar Fac Gar Fac Fac Low Low Dat Pro Fac Gar Fac Gar Matter Collected 16010 | 289 330 . 1176 248 1038 77 1772 591 1191 1198 353 1285 153 191 120 633 2148 1528 1251 438 Remotely 191 | . . . . . . . . . . . . . . . . . 191 . . . Salvage Created 17847 | 130 597 . 1269 242 530 36 2789 611 1407 1016 264 2228 51 437 163 665 2273 1436 1148 555 Parts 898 | 9 45 . 76 11 75 2 142 25 70 43 9 110 . 14 . 19 99 70 56 23 Haulers Intercepted 22 | . 2 . 3 . . . 6 . 3 . . 4 . . . . 2 . 2 . Recyclers Shooed 25 | . . . 5 1 . . 1 . 4 . 2 3 . . . . 7 . 2 . Parts Field Recycled . | . . . . . . . . . . . . . . . . . . . . . Retrieved Matter . | . . . . . . . . . . . . . . . . . . . . . Parts Self-Destructed 36 | . . . . . . . . . . . . . 6 14 . 16 . . . . Prevented 4 | . . . . . . . . . . . . . . . . 4 . . . . Kills | -11 -10 -10 -9 -9 -9 -8 -8 -8 -7 -7 -7 -6 -6 -6 -6 -5 -5 -5 -5 -5 ------- Run | Scr Mat Min Mat Min Exi Min Mat Gar Fac Gar Fac Fac Low Low Dat Pro Fac Gar Fac Gar Combat Hostiles Destroyed 294 | . 14 . 19 1 5 2 53 16 17 22 5 25 1 8 3 14 35 21 18 15 Melee 6 | . . . . . . . . . . . 1 . . . . . 5 . . . Guns 111 | . 12 . 17 1 2 2 42 8 4 6 1 5 1 . . 3 . 7 . . Cannons 135 | . . . . . . . 10 . 13 11 3 19 . 7 . 10 22 11 14 15 AOE 31 | . 2 . 2 . 3 . . 6 . 5 . 1 . . 2 1 7 1 1 . Classes Destroyed 21 | 2 6 . 3 1 2 . 3 . 1 . . . . 1 . . . 2 . . Worker 18 | . 3 . 1 2 . . 5 . 2 . . 1 . . . . 3 . 1 . Builder 7 | . . . . . . . 1 . 2 . . 2 . . . . 2 . . . Tunneler 5 | 2 1 . . . . . . . . . . . . . . . 1 . 1 . Hauler 22 | . 2 . 3 . . . 6 . 3 . . 4 . . . . 2 . 2 . Recycler 29 | 1 . . 4 1 . . 2 . 8 . 1 5 . . . . 6 . 1 . Mechanic 1 | . . . 1 . . . . . . . . . . . . . . . . . Operator 7 | . 1 . . . . . 1 . 1 . . . . . . . 3 . 1 . Watcher 17 | . 3 . 5 . . . 2 . 1 . . 2 . . . . 2 . 2 . Swarmer 87 | . 6 . 3 . . 2 17 7 4 8 3 12 . . . 3 8 2 7 5 Saboteur 1 | . . . . . . . . . . . . . . . . . . 1 . . Grunt 99 | . 8 . 7 . . . 23 5 6 5 1 1 1 4 . 6 11 11 2 8 Brawler 7 | . . . . . . . 1 . . 4 . . . 1 . 1 . . . . Duelist 4 | . . . 1 . . . 2 1 . . . . . . . . . . . . Sentry 41 | . . . 8 . . . 8 2 3 3 1 4 . . . 1 5 5 1 . Demolisher 1 | . . . . 1 . . . . . . . . . . . . . . . . Hunter 21 | . . . . . . . 2 1 1 2 . 5 . . . 3 3 . 4 . Programmer 21 | . . . . . . . . . 3 . . 3 . . . . 8 1 4 2 Behemoth 1 | . . . . . . . . . . . . . . . . . . 1 . . Enhanced Grunt 3 | . . . . . . . . . . . . . . . 3 . . . . . Zionite 6 | . . . . . 6 . . . . . . . . . . . . . . . Master Thief 4 | . . . . . . . . . . . . . . 4 . . . . . . Assembled 7 | . . . . . 7 . . . . . . . . . . . . . . . Best Kill Streak 11 | 2 4 . 4 1 4 2 6 9 6 9 3 5 1 3 3 3 11 2 4 3 Combat Bots Only 9 | . 3 . 3 1 4 2 6 9 3 9 3 4 1 3 3 3 8 2 4 3 Max Kills in Single Turn 4 | 1 2 . 2 1 3 1 2 2 1 2 1 2 1 1 2 2 4 1 1 1 Gunslinging 1 | . . . . . . . 1 . . . . . . . . . . . . . Exploded 3 | . 2 . 1 . 2 . . 2 . 2 . 1 . . 2 1 3 1 1 . Melee 1 | . . . . . . . . . . . 1 . . . . . 1 . . . Uniques/NPCs Destroyed 2 | . . . . . 2 . . . . . . . . . . . . . . . 8R-AWN (-9/Exiles) EX-BIN (-9/Exiles) EX-HEX (-9/Exiles) EX-DEC (-9/Exiles) Combat | -11 -10 -10 -9 -9 -9 -8 -8 -8 -7 -7 -7 -6 -6 -6 -6 -5 -5 -5 -5 -5 -------- Run | Scr Mat Min Mat Min Exi Min Mat Gar Fac Gar Fac Fac Low Low Dat Pro Fac Gar Fac Gar Damage Taken 28159 | . 727 13 1338 546 1254 31 3264 1410 1226 2707 453 2891 77 258 . 2413 3724 2163 2026 1638 Core 3200 | . 58 . 210 61 125 . 296 189 171 252 31 354 . 37 . 412 462 159 184 199 Absorbed by Shields 667 | . . . . . . . 158 84 . 120 . . . . . 170 . 135 . . Core Remaining (%) 38 | 100 . 76 . . . 1 . 11 . . 35 . . . . 5 . . . . Volleys Fired 1549 | 6 100 . 95 34 88 4 220 63 101 104 25 163 13 44 . 52 134 167 76 60 Largest 2 | 2 2 . 2 2 2 2 2 2 2 2 2 2 1 2 . 2 2 2 2 2 Hottest 180 | 40 100 . 46 46 60 53 86 86 128 128 120 180 120 180 . 180 120 171 162 155 Shots Fired 2659 | 12 188 . 186 68 162 8 423 106 190 173 38 282 13 53 . 81 218 217 131 110 Gun 1415 | 12 182 . 183 68 159 8 373 80 61 86 26 76 5 9 . 27 . 60 . . Cannon 1115 | . . . . . . . 50 12 126 82 3 180 3 38 . 48 200 146 118 109 Launcher 30 | . 3 . 3 . 3 . . 6 . 5 . 1 . . . 6 3 . . . Special 99 | . 3 . . . . . . 8 3 . 9 25 5 6 . . 15 11 13 1 Kinetic 1900 | 12 125 . 183 68 159 8 387 80 144 155 26 76 5 9 . 30 194 100 70 69 Thermal 415 | . 60 . . . . . . . 26 7 3 180 3 38 . 33 6 19 15 25 Explosive 19 | . 3 . 3 . 3 . . . . . . 1 . . . 6 3 . . . Electromagnetic 229 | . . . . . . . 36 18 17 11 . . . . . 12 . 87 33 15 Robot Hit Streak 32 | 7 16 . 9 14 15 1 32 15 12 10 12 12 15 22 . 16 16 13 12 7 Robot Miss Streak 7 | 1 7 . 3 4 3 4 4 3 6 3 5 5 1 3 . 3 7 3 5 7 Penetration Max 1 | . . . . . 1 . . . 1 1 . 1 1 . . 1 . 1 1 . Secondary Targets 12 | . 2 . 1 . . . 8 1 . . . . . . . . . . . . Max Gunslinging Chain 1 | . 1 . 1 . . . 1 1 . . . . . . . . . . . . Capacitor 3 | . . . . . . . . . . . . . . . . . . 3 . . Shots Hit Robots 1692 | 9 106 . 121 41 111 2 312 64 112 118 31 145 10 41 1 52 148 127 83 58 Core Hits 776 | 5 42 . 55 22 43 2 129 29 50 51 9 61 4 14 14 28 103 54 35 26 Critical Hits 95 | . . . . . 13 1 9 4 8 5 1 6 1 1 . 4 19 12 8 3 Critical Kills 35 | . . . . . 2 1 3 . 4 1 . 3 . 1 . 2 10 5 3 . Critical Parts Destroyed 51 | . . . . . 8 . 6 3 3 4 . 3 1 . . 2 9 5 5 2 Melee Attacks 51 | . . . . . . . . . . 7 6 4 . . 1 . 33 . . . Impact . | . . . . . . . . . . . . . . . . . . . . . Slashing 51 | . . . . . . . . . . 7 6 4 . . 1 . 33 . . . Piercing . | . . . . . . . . . . . . . . . . . . . . . Sneak Attacks 4 | . . . . . . . . . . . 2 . . . 1 . 1 . . . Combat Hostiles 1 | . . . . . . . . . . . 1 . . . . . . . . . Follow-up Attacks . | . . . . . . . . . . . . . . . . . . . . . Damage Inflicted 42196 | 90 1391 . 2184 712 2204 47 4890 1661 3037 3206 704 3372 141 1269 764 2095 6096 3249 2953 2131 Guns 14456 | 90 1096 . 1948 712 1649 47 3937 736 694 814 268 1112 34 37 . 450 . 832 . . Cannons 20188 | . . . . . . . 947 209 2087 1445 99 2079 107 1232 . 957 4009 2288 2717 2012 Explosions 5388 | . 295 . 236 . 465 . . 716 240 345 . 181 . . 630 688 1121 126 226 119 Melee 2015 | . . . . . . . . . . 598 337 . . . 134 . 946 . . . Ramming 149 | . . . . . 90 . 6 . 16 4 . . . . . . 20 3 10 . Kinetic 23940 | 90 659 . 1948 712 1649 47 4103 736 1902 1980 268 1112 34 37 . 519 3873 1744 1427 1100 Thermal 7603 | . 534 . . . . . . 64 761 133 99 2079 107 1232 . 685 166 531 434 778 Explosive 2730 | . 198 . 236 . 465 . . . . . . 181 . . . 688 736 . 226 . Electromagnetic 5759 | . . . . . . . 781 861 358 491 . . . . 630 203 355 971 856 253 Impact . | . . . . . . . . . . . . . . . . . . . . . Slashing 2015 | . . . . . . . . . . 598 337 . . . 134 . 946 . . . Piercing . | . . . . . . . . . . . . . . . . . . . . . Highest Corruption 31 | . 3 3 . . . . . . 2 3 3 2 2 2 2 3 24 25 28 31 Average Corruption 10 | . 1 3 . . . . . . 1 2 3 2 2 2 2 2 10 24 25 30 Corruption Purged . | . . . . . . . . . . . . . . . . . . . . . Effects 726 | . 15 5 . . . . . . 5 27 28 30 6 7 10 12 97 231 164 89 Message Errors 131 | . 8 2 . . . . . . 1 3 10 9 2 . 4 5 10 36 30 11 Matter Fused 89 | . 1 3 . . . . . . . 5 8 . . . . 1 11 30 22 8 Heat Flow Errors 59 | . 1 . . . . . . . . 2 4 4 1 2 2 . 11 13 15 4 Energy Discharges 71 | . 1 . . . . . . . . 4 2 5 . 2 1 1 9 21 17 8 Parts Rejected 3 | . . . . . . . . . . . . . . . . . . 2 1 . Data Loss (minor) 63 | . 1 . . . . . . . 2 5 1 6 3 1 3 2 8 16 8 7 Data Loss (major) 20 | . . . . . . . . . . . . . . . . . 2 12 6 . Misfires 15 | . . . . . . . . . . . . . . . . . 4 6 5 . Alerts 7 | . . . . . . . . . . . . . . . . . 1 2 3 1 Misdirections 61 | . . . . . . . . . . . . . . . . . 11 29 16 5 Targeting Errors 177 | . 2 . . . . . . . 2 7 3 6 . 1 . 3 28 54 35 36 Weapon Failures 30 | . 1 . . . . . . . . 1 . . . 1 . . 2 10 6 9 Overload Shots . | . . . . . . . . . . . . . . . . . . . . . Overflow Damage 845 | . 13 . 9 . 10 . 23 23 63 29 103 72 . 83 35 15 163 36 71 97 Projectiles 470 | . . . . . . . 23 2 63 3 . . . 83 . 14 99 36 71 76 Explosions 201 | . 13 . 9 . 10 . . 21 . . . 72 . . 21 1 33 . . 21 Melee 174 | . . . . . . . . . . 26 103 . . . 14 . 31 . . . Knockbacks 91 | . . . . . 1 . 4 . 11 3 . . . . . . 37 4 16 15 Impact 1 | . . . . . 1 . . . . . . . . . . . . . . . Kinetic 84 | . . . . . . . 4 . 10 3 . . . . . . 34 4 15 14 Secondary 6 | . . . . . . . . . 1 . . . . . . . 3 . 1 1 Self-Inflicted Damage 759 | . 111 . 54 . . . . 55 32 75 . 98 . . . 21 250 63 . . Shots 18 | . 1 . 2 . . . . 3 1 3 . 2 . . . 1 3 2 . . Rammed 30 | . . . . . 23 . 1 . 1 1 . . . . . . 2 1 1 . Targets Rammed 30 | . . . . . 23 . 1 . 1 1 . . . . . . 2 1 1 . Kicked . | . . . . . . . . . . . . . . . . . . . . . Crushed . | . . . . . . . . . . . . . . . . . . . . . Highest Temperature 513 | . 190 . 63 10 397 118 8 106 270 333 463 513 176 336 274 324 254 408 470 251 Average Temperature 89 | . 31 . 11 3 165 60 8 23 87 78 132 120 80 130 141 109 69 83 86 85 Received Heat Transfer 5327 | . 291 9 462 . 49 . 1032 450 351 348 114 174 36 36 . 571 351 456 354 243 Effects 50 | . . . . . 10 . . . . 6 5 12 . 3 . 3 2 4 5 . Shutdowns 6 | . . . . . . . . . . . 2 2 . . . . . 1 1 . Energy Bleed 9 | . . . . . 3 . . . . 1 1 1 . . . 1 . 1 1 . Interference 23 | . . . . . 3 . . . . 5 1 7 . 3 . 2 2 . . . Matter Decay 5 | . . . . . 2 . . . . . . 2 . . . . . 1 . . Short Circuit 1 | . . . . . 1 . . . . . . . . . . . . . . . Damage (minor) 3 | . . . . . 1 . . . . . 1 . . . . . . 1 . . Damage (major) 3 | . . . . . . . . . . . . . . . . . . . 3 . Siege Activations . | . . . . . . . . . . . . . . . . . . . . . Robots Corrupted 13 | . . . . . . . 4 2 . . . . . . 1 . . 2 4 . Combat Hostiles 9 | . . . . . . . 1 2 . . . . . . 1 . . 2 3 . Parts Fried 32 | . . . . . . . 11 4 1 . . . . . . . 1 3 11 1 Impact Corruptions 2 | . . . . . . . . . . . . . . . . . 1 . . 1 Robots Melted 1 | . . . . . . . . . . . . . . 1 . . . . . . Combat Hostiles 1 | . . . . . . . . . . . . . . 1 . . . . . . Parts Melted 19 | . . . . . . . 1 . . . 1 6 1 7 . . 2 . . 1 Heat Transferred 11462 | . 1358 . . . . . . 150 953 185 240 2787 240 2246 . 883 370 840 444 766 Parts Sabotaged 3 | . . . . . . . . . . . . . . . . . . . 3 . Parts Stolen 3 | . . . . . . . . . . . . . . 3 . . . . . . Parts Stripped . | . . . . . . . . . . . . . . . . . . . . . Power Chain Reactions 11 | . . . . . . . . 3 3 2 . . . . . . . 2 . 1 Missiles Intercepted . | . . . . . . . . . . . . . . . . . . . . . Alert | -11 -10 -10 -9 -9 -9 -8 -8 -8 -7 -7 -7 -6 -6 -6 -6 -5 -5 -5 -5 -5 ------- Run | Scr Mat Min Mat Min Exi Min Mat Gar Fac Gar Fac Fac Low Low Dat Pro Fac Gar Fac Gar Peak Influence 1720 | 15 222 44 265 34 . 41 612 702 486 907 557 972 . . . . 1518 1720 1033 894 Average Influence 510 | 8 99 44 92 9 . 3 269 667 303 695 439 433 . . . . 449 1375 664 706 Maximum Alert Level 5 | . 1 . 1 . . . 2 3 2 3 2 3 . . . . 4 5 3 3 Low Security (%) 31 | 100 99 100 97 100 . 100 27 . 18 . . 29 . . . . 48 . . . Level 1 17 | . . . 2 . . . 57 3 66 10 31 34 . . . . 3 . . . Level 2 21 | . . . . . . . 14 55 14 20 68 7 . . . . 21 . 70 35 Level 3 18 | . . . . . . . . 40 . 69 . 28 . . . . 19 2 29 64 Level 4 9 | . . . . . . . . . . . . . . . . . 7 77 . . Level 5 2 | . . . . . . . . . . . . . . . . . . 19 . . High Security . | . . . . . . . . . . . . . . . . . . . . . Max Security . | . . . . . . . . . . . . . . . . . . . . . Squads Dispatched 51 | . 3 . . . . . 6 . 7 . 1 13 . . . . 14 . 7 . Investigation 11 | . 2 . . . . . 2 . 2 . . 2 . . . . 2 . 1 . Extermination 14 | . . . . . . . . . 3 . . 5 . . . . 3 . 3 . Reinforcement 12 | . 1 . . . . . 2 . 1 . . 3 . . . . 3 . 2 . Assault 3 | . . . . . . . . . . . . 1 . . . . 1 . 1 . Garrison 11 | . . . . . . . 2 . 1 . 1 2 . . . . 5 . . . Intercept . | . . . . . . . . . . . . . . . . . . . . . Construction Impeded 5 | . . . . . . . 1 . . . . 1 . . . . 2 . 1 . Haulers Reinforced 3 | . . . . . . . . . 1 . . 1 . . . . . . 1 . Alert ID Control Effect 7 | . . . . . . . . . . . . . . . . . . . 6 1 Stealth | -11 -10 -10 -9 -9 -9 -8 -8 -8 -7 -7 -7 -6 -6 -6 -6 -5 -5 -5 -5 -5 --------- Run | Scr Mat Min Mat Min Exi Min Mat Gar Fac Gar Fac Fac Low Low Dat Pro Fac Gar Fac Gar Distress Signals 12 | . . . 2 . . . 5 . 1 . . 2 . . . . 2 . . . Communications Jammed . | . . . . . . . . . . . . . . . . . . . . . Distress Signals . | . . . . . . . . . . . . . . . . . . . . . Times Spotted 538 | . 22 2 27 2 15 3 76 33 33 30 13 63 6 13 . 19 61 48 41 31 Peak Tracking Total 14 | . 4 2 3 2 7 3 6 9 4 14 3 5 4 3 . 5 7 5 5 7 Tactical Retreats 75 | . . . . . 3 1 4 10 5 3 1 3 . . . 3 11 19 2 10 Traps | -11 -10 -10 -9 -9 -9 -8 -8 -8 -7 -7 -7 -6 -6 -6 -6 -5 -5 -5 -5 -5 ------- Run | Scr Mat Min Mat Min Exi Min Mat Gar Fac Gar Fac Fac Low Low Dat Pro Fac Gar Fac Gar Traps Triggered 31 | . 5 . . . . . . 5 1 5 . 4 . . 3 . . 5 2 1 Indirectly 5 | . . . . . . . . . . 2 . . . . 3 . . . . . Trap Hack Attempts . | . . . . . . . . . . . . . . . . . . . . . Triggered . | . . . . . . . . . . . . . . . . . . . . . Disarmed . | . . . . . . . . . . . . . . . . . . . . . Reprogrammed . | . . . . . . . . . . . . . . . . . . . . . Reused 3 | . . . . . . . . . . . . . . . 1 2 . . . . Traps Extracted . | . . . . . . . . . . . . . . . . . . . . . Installed 10 | . . . . . . . . . . . . . . . 7 3 . . . . Triggered 6 | . . . . . . . 1 2 . 1 . . . . . 2 . . . . Machines | -11 -10 -10 -9 -9 -9 -8 -8 -8 -7 -7 -7 -6 -6 -6 -6 -5 -5 -5 -5 -5 ---------- Run | Scr Mat Min Mat Min Exi Min Mat Gar Fac Gar Fac Fac Low Low Dat Pro Fac Gar Fac Gar Machines Disabled 83 | . 1 . . . 11 . 1 2 2 3 . 28 . . 1 . 18 4 8 4 Max in Single Turn 5 | . 1 . . . 1 . 1 1 1 1 . 3 . . 1 . 5 1 4 1 Garrison Access 5 | . . . . . . . . . 1 . 1 2 . . . . 1 . . . Garrison Relay 10 | . . . . . . . . 2 . 3 . . . . . . . 4 . 1 Machines Sabotaged . | . . . . . . . . . . . . . . . . . . . . . Garrisons Compromised 1 | . . . . . . . . . . . . 1 . . . . . . . . Overloaded Fab Kills . | . . . . . . . . . . . . . . . . . . . . . Fab Network Shutdowns 1 | . . . . . . . . . . . . . . . . . 1 . . . Hacking | -11 -10 -10 -9 -9 -9 -8 -8 -8 -7 -7 -7 -6 -6 -6 -6 -5 -5 -5 -5 -5 --------- Run | Scr Mat Min Mat Min Exi Min Mat Gar Fac Gar Fac Fac Low Low Dat Pro Fac Gar Fac Gar Machines Accessed 82 | . 9 1 8 1 2 . 10 . 9 . 3 16 . . 4 . 12 . 7 . Terminals 48 | . 7 . 7 1 . . 7 . 3 . 1 10 . . . . 6 . 6 . Fabricators 7 | . . . . . . . . . 1 . . 4 . . . . 2 . . . Repair Stations 5 | . . . 1 . . . 1 . 1 . 1 . . . . . 1 . . . Recycling Units 3 | . 2 . . . . . . . 1 . . . . . . . . . . . Scanalyzers 2 | . . . . . . . 1 . 1 . . . . . . . . . . . Garrison Access 10 | . . . . . . . 1 . 2 . 1 2 . . . . 3 . 1 . Total Hacks 254 | . 36 1 27 2 5 . 43 . 20 . 8 37 . . 29 . 32 . 14 . Successful 153 | . 21 1 19 . 5 . 24 . 7 . 3 20 . . 29 . 18 . 6 . Failed 101 | . 15 . 8 2 . . 19 . 13 . 5 17 . . . . 14 . 8 . Catastrophic 22 | . 2 . 1 . . . 3 . 4 . 1 5 . . . . 4 . 2 . Database Lockouts . | . . . . . . . . . . . . . . . . . . . . . Manual 89 | . 22 . 14 2 1 . 17 . 4 . 1 16 . . . . 9 . 3 . Terminals 151 | . 32 . 23 2 . . 30 . 7 . 5 22 . . . . 17 . 13 . Fabricators 18 | . . . . . . . . . 3 . . 8 . . . . 7 . . . Repair Stations 11 | . . . 4 . . . 3 . 1 . 1 . . . . . 2 . . . Recycling Units 7 | . 4 . . . . . . . 3 . . . . . . . . . . . Scanalyzers 10 | . . . . . . . 8 . 2 . . . . . . . . . . . Garrison Access 22 | . . . . . . . 2 . 4 . 2 7 . . . . 6 . 1 . Terminal Hacks 96 | . 16 1 12 . 5 . 10 . 1 . 2 9 . . 29 . 6 . 5 . Record 15 | . . . . . 4 . . . . . . . . . 11 . . . . . Part Schematic 11 | . 2 . . . . . . . . . . . . . 8 . 1 . . . Robot Schematic 10 | . 1 . 2 . . . . . . . . . . . 7 . . . . . Robot Analysis 6 | . 5 . 1 . . . . . . . . . . . . . . . . . Prototype ID Bank 11 | . 2 . 1 . . . 2 . 1 . 1 1 . . 3 . . . . . Open Door 1 | . . 1 . . . . . . . . . . . . . . . . . . Branch Access Points 5 | . 1 . 1 . . . . . . . . 1 . . . . 1 . 1 . Terminal Index 4 | . . . 1 . . . 1 . . . . 1 . . . . 1 . . . Fabricator Index 2 | . . . . . . . . . . . . 1 . . . . 1 . . . Alert Level 2 | . . . 1 . . . . . . . . . . . . . . . 1 . Unreport Threat 8 | . . . 1 . . . 2 . . . . 3 . . . . . . 2 . Locate Traps 5 | . . . 1 . . . . . . . 1 1 . . . . 1 . 1 . Dispatch Records 1 | . . . . . . . 1 . . . . . . . . . . . . . Maintenance Status 1 | . . . . . . . . . . . . 1 . . . . . . . . Hauler Manifests 1 | . . . 1 . . . . . . . . . . . . . . . . . Registered Components 1 | . 1 . . . . . . . . . . . . . . . . . . . Zone Layout 11 | . 4 . 2 . . . 4 . . . . . . . . . 1 . . . EX-Prototype ID Bank 1 | . . . . . 1 . . . . . . . . . . . . . . . Fabricator Hacks 9 | . . . . . . . . . 1 . . 5 . . . . 3 . . . Load Schematic 5 | . . . . . . . . . 1 . . 3 . . . . 1 . . . Build 4 | . . . . . . . . . . . . 2 . . . . 2 . . . Repair Station Hacks 7 | . . . 4 . . . 1 . . . . . . . . . 2 . . . Scan Component 4 | . . . 2 . . . 1 . . . . . . . . . 1 . . . Repair 3 | . . . 2 . . . . . . . . . . . . . 1 . . . Recycling Unit Hacks 2 | . 1 . . . . . . . 1 . . . . . . . . . . . Retrieve Components 2 | . 1 . . . . . . . 1 . . . . . . . . . . . Scanalyzer 8 | . . . . . . . 6 . 2 . . . . . . . . . . . Insert Component 4 | . . . . . . . 3 . 1 . . . . . . . . . . . Analyze 4 | . . . . . . . 3 . 1 . . . . . . . . . . . Garrison Access Hacks 10 | . . . . . . . 1 . 2 . 1 2 . . . . 3 . 1 . Unlock Access 5 | . . . . . . . 1 . 1 . . . . . . . 2 . 1 . Seal Access 5 | . . . . . . . . . 1 . 1 2 . . . . 1 . . . Unauthorized Hacks 21 | . 4 . 3 . . . 6 . . . . 4 . . . . 4 . . . Terminals 17 | . 4 . 3 . . . 5 . . . . 3 . . . . 2 . . . Track 9 | . 1 . 3 . . . 3 . . . . 1 . . . . 1 . . . Assimilate 2 | . 2 . . . . . . . . . . . . . . . . . . . Botnet 5 | . 1 . . . . . 2 . . . . 1 . . . . 1 . . . Operators 1 | . . . . . . . . . . . . 1 . . . . . . . . Fabricators . | . . . . . . . . . . . . . . . . . . . . . Repair Stations . | . . . . . . . . . . . . . . . . . . . . . Recycling Units . | . . . . . . . . . . . . . . . . . . . . . Scanalyzers . | . . . . . . . . . . . . . . . . . . . . . Garrison Access 4 | . . . . . . . 1 . . . . 1 . . . . 2 . . . Reprogram 1 | . . . . . . . . . . . . 1 . . . . . . . . Eject 3 | . . . . . . . 1 . . . . . . . . . 2 . . . Data Cores Recovered 4 | . . . . . . . . . 1 . . . . . . . 2 . 1 . Used . | . . . . . . . . . . . . . . . . . . . . . Hacking Detections 66 | . 8 . 7 1 . . 10 . 7 . 2 15 . . . . 9 . 7 . Full Trace Events 6 | . 1 . . . . . 1 . 2 . . 1 . . . . . . 1 . Feedback Events 1 | . . . . . . . . . 1 . . . . . . . . . . . Corruption 1 | . . . . . . . . . 1 . . . . . . . . . . . Feedback Blocked . | . . . . . . . . . . . . . . . . . . . . . Robot Schematics Acquired 10 | . 1 . 2 . . . . . . . . . . . 7 . . . . . Robots Built . | . . . . . . . . . . . . . . . . . . . . . Matter . | . . . . . . . . . . . . . . . . . . . . . Time . | . . . . . . . . . . . . . . . . . . . . . Total Robot Build Rating . | . . . . . . . . . . . . . . . . . . . . . Part Schematics Acquired 14 | . 2 . . . . . 2 . 1 . . . . . 8 . 1 . . . Parts Built 3 | . . . . . . . . . . . . 2 . . . . 1 . . . Matter 789 | . . . . . . . . . . . . 204 . . . . 585 . . . Time 219 | . . . . . . . . . . . . 68 . . . . 151 . . . Total Part Build Rating 9 | . . . . . . . . . . . . 2 . . . . 7 . . . Parts Repaired 3 | . . . 2 . . . . . . . . . . . . . 1 . . . Time 132 | . . . 64 . . . . . . . . . . . . . 68 . . . Parts Recycled . | . . . . . . . . . . . . . . . . . . . . . Recycled Matter . | . . . . . . . . . . . . . . . . . . . . . Retrieved Matter . | . . . . . . . . . . . . . . . . . . . . . Retrieved Components 19 | . 9 . . . . . . . 10 . . . . . . . . . . . Parts Scanalyzed 4 | . . . . . . . 3 . 1 . . . . . . . . . . . Part Schematics Acquired 3 | . . . . . . . 2 . 1 . . . . . . . . . . . Parts Damaged 1 | . . . . . . . 1 . . . . . . . . . . . . . Bothacking | -11 -10 -10 -9 -9 -9 -8 -8 -8 -7 -7 -7 -6 -6 -6 -6 -5 -5 -5 -5 -5 ------------ Run | Scr Mat Min Mat Min Exi Min Mat Gar Fac Gar Fac Fac Low Low Dat Pro Fac Gar Fac Gar Used RIF Installer 4 | . . . . . . . . 1 . 1 . . . . . . . 1 . 1 Robot Detection 1 | . . . . . . . . . . 1 . . . . . . . . . . Alert ID Control 1 | . . . . . . . . . . . . . . . . . . 1 . . Program Shield 1 | . . . . . . . . . . . . . . . . . . . . 1 Robots Hacked 43 | . . . . . . . . 3 1 . 4 11 3 2 . . 8 3 7 1 Non-combat 14 | . . . . . . . . . 1 . . 4 . 1 . . 5 . 3 . Combat 29 | . . . . . . . . 3 . . 4 7 3 1 . . 3 3 4 1 Robot Hacks Applied 47 | . . . . . . . . 3 1 . 5 12 3 2 . . 9 3 8 1 find_chute 2 | . . . . . . . . . . . . 1 . . . . 1 . . . deconstruct_machine 2 | . . . . . . . . . . . . 2 . . . . . . . . ignore_repairs 3 | . . . . . . . . . . . . . . . . . 3 . . . drop_inventory 4 | . . . . . . . . . . . . 1 . . . . 1 . 2 . summon_haulers 1 | . . . . . . . . . . . . . . . . . . . 1 . find_garrison 4 | . . . . . . . . . . . 1 1 . . . . 1 . 1 . reboot_system 1 | . . . . . . . . . . . 1 . . . . . . . . . overwrite_iff 5 | . . . . . . . . . . . . 1 1 . . . 1 2 . . streamctrl_high 1 | . . . . . . . . . . . . . . . . . . . . 1 formatsys_low 2 | . . . . . . . . . 1 . . . . 1 . . . . . . formatsys_high 22 | . . . . . . . . 3 . . 3 6 2 1 . . 2 1 4 . Relay Couplers Released 59 | . . . . . . . 4 8 . 13 . 4 . . . . 8 17 . 5 Ejected 7 | . . . . . . . 4 . . . . . . . . . 3 . . . Machine Destruction 49 | . . . . . . . . 8 . 13 . 4 . . . . 2 17 . 5 Programmers 3 | . . . . . . . . . . . . . . . . . 3 . . . Attached 24 | . . . . . . . . 2 1 1 3 7 . 1 . . 4 1 4 . Robots Rewired 2 | . . . . . . . . . . . . . . . . . . 2 . . Allies Hacked 1 | . . . . . . . . . . . . . . . . . 1 . . . Hacks Repelled . | . . . . . . . . . . . . . . . . . . . . . Allies | -11 -10 -10 -9 -9 -9 -8 -8 -8 -7 -7 -7 -6 -6 -6 -6 -5 -5 -5 -5 -5 -------- Run | Scr Mat Min Mat Min Exi Min Mat Gar Fac Gar Fac Fac Low Low Dat Pro Fac Gar Fac Gar Total Allies 50 | . 1 . . . . . . 3 1 . 3 24 3 2 . . 3 5 4 1 Largest Group 15 | . 1 1 1 1 . . . 3 1 . 3 15 5 3 1 1 1 2 4 1 Highest-Rated Group 397 | . 10 10 10 9 . . . 48 19 . 93 397 148 90 21 19 29 76 116 49 Highest-Rated Ally 49 | . 10 10 10 9 . . . 16 19 . 32 41 32 32 21 19 29 49 29 49 Total Orders 34 | . . 1 9 2 . . . . 1 . 4 3 . . 6 1 . 7 . . STAY 3 | . . . 2 . . . . . . . 1 . . . . . . . . . GOTO 17 | . . 1 3 1 . . . . . . 1 2 . . 4 . . 5 . . ROAM 1 | . . . . . . . . . . . . . . . . . . 1 . . FOLLOW 8 | . . . 4 1 . . . . . . 2 . . . 1 . . . . . AID 1 | . . . . . . . . . 1 . . . . . . . . . . . DROP 2 | . . . . . . . . . . . . . . . 1 1 . . . . EXPLORE 2 | . . . . . . . . . . . . 1 . . . . . 1 . . Ally Attacks 332 | . . . . . 13 . . 9 . . 16 130 31 33 2 . 18 35 42 3 Total Damage 8227 | . . . . . 546 . . 94 . . 261 4278 548 625 129 . 268 659 671 148 Kills 67 | . . . . . 3 . . . . . 3 41 4 3 1 . 1 4 6 1 Allies Corrupted 3 | . . . . . . . . . . . . 2 . . . . . . 1 . Allies Melted . | . . . . . . . . . . . . . . . . . . . . . Turrets Deployed 3 | . . . . . 1 . . . . . . 1 . . 1 . . . . . Intel | -11 -10 -10 -9 -9 -9 -8 -8 -8 -7 -7 -7 -6 -6 -6 -6 -5 -5 -5 -5 -5 ------- Run | Scr Mat Min Mat Min Exi Min Mat Gar Fac Gar Fac Fac Low Low Dat Pro Fac Gar Fac Gar Robot Analysis Total 6 | . 5 . 1 . . . . . . . . . . . . . . . . . Derelict Logs Recovered 5 | . . . . 1 . . . . . . . . 2 . . 2 . . . . Drone Launches 6 | . . . . . . . . . . . . 2 . . . . 2 2 . . Drone Recoveries . | . . . . . . . . . . . . . . . . . . . . . Decoded 0b10 Intel 17 | . . . . . . . . . . . . . . . . . 17 . . . Emergency Access 2 | . . . . . . . . . . . . . . . . . 2 . . . Items 14 | . . . . . . . . . . . . . . . . . 14 . . . Patrols 1 | . . . . . . . . . . . . . . . . . 1 . . . Exploration | -11 -10 -10 -9 -9 -9 -8 -8 -8 -7 -7 -7 -6 -6 -6 -6 -5 -5 -5 -5 -5 ------------- Run | Scr Mat Min Mat Min Exi Min Mat Gar Fac Gar Fac Fac Low Low Dat Pro Fac Gar Fac Gar Turns Passed 32284 | 147 1556 128 1796 803 2535 213 2331 2403 1911 1201 1051 3946 808 726 908 1081 2920 2850 2145 825 Spaces Moved 14589 | 75 824 71 782 387 1203 113 868 672 953 610 518 2223 395 322 380 440 1294 1206 951 302 Core 79 | 5 . . . . . . . 71 . . . . . . . . 3 . . . Treads 8165 | 70 436 71 782 387 1203 113 868 154 . 38 372 882 395 322 380 440 33 207 710 302 Legs 1850 | . . . . . . . . 447 181 . . . . . . . . 981 241 . Wheels 4495 | . 388 . . . . . . . 772 572 146 1341 . . . . 1258 18 . . Hover . | . . . . . . . . . . . . . . . . . . . . . Flight . | . . . . . . . . . . . . . . . . . . . . . Fastest Speed 50 | 50 110 180 180 180 160 180 172 200 120 120 150 120 192 192 192 192 116 176 176 180 Average Speed 177 | 152 142 180 180 180 179 180 178 323 149 133 174 149 192 192 192 202 168 185 191 199 Slowest Speed 1900 | 160 180 180 180 180 200 180 200 1150 240 240 220 192 192 192 192 265 1900 280 200 200 Overloaded Moves . | . . . . . . . . . . . . . . . . . . . . . Propulsion Burnouts . | . . . . . . . . . . . . . . . . . . . . . Robots Hopped 7 | . . 2 . . 2 . . . . . . 2 . . 1 . . . . . Cave-ins Triggered 1 | . . . . . . . . . . . . . . . . . 1 . . . Exploration Rate (%) 49 | 4 95 16 65 56 91 26 65 37 20 71 11 54 54 45 78 58 35 85 19 46 Regions Visited 20 Branch Regions 8 Pre-discovered Areas 4 | . . . . 2 1 . . . . . . . . . 1 . . . . . Known Exits Taken 9 | . 1 . 1 . . . 1 . 1 . . 1 1 . . 1 1 . 1 . Unknown Exits Taken 8 | 1 . 1 . 1 1 1 . . . . 1 . . 1 1 . . . . . Scrap Searched 11 | . . . . 1 . 1 . . . . . . 1 4 . 4 . . . . Spaces Dug 72 | . 13 . 5 . . . . . 3 . . 21 . . . . 15 4 11 . Terrain Destroyed 617 | . 66 . 15 . 22 4 4 1 35 10 . 87 . 2 27 57 163 27 79 18 Melee 10 | . . . . . . . . . . . . 3 . . . . 7 . . . Projectile 243 | . 3 . . . 7 4 4 . 21 . . 50 . 2 . 10 67 13 44 18 AOE 364 | . 63 . 15 . 15 . . 1 14 10 . 34 . . 27 47 89 14 35 . Actions | -11 -10 -10 -9 -9 -9 -8 -8 -8 -7 -7 -7 -6 -6 -6 -6 -5 -5 -5 -5 -5 --------- Run | Scr Mat Min Mat Min Exi Min Mat Gar Fac Gar Fac Fac Low Low Dat Pro Fac Gar Fac Gar Total 18553 | 93 1037 70 1015 430 1432 116 1248 802 1256 822 633 2663 440 400 560 543 1802 1640 1144 407 Wait 1047 | . 59 . 72 2 26 . 61 20 114 11 37 117 22 1 136 18 190 127 28 6 Move 14555 | 74 823 66 781 386 1198 112 867 670 952 609 517 2218 394 321 377 439 1293 1205 951 302 Hop 7 | . . 2 . . 2 . . . . . . 2 . . 1 . . . . . Pick Up 314 | 6 22 1 28 . 26 . 20 9 15 22 12 33 2 12 11 7 37 32 10 9 Fast Attach 196 | 7 . . 5 . 13 . 16 8 16 12 6 22 1 3 1 5 30 26 17 8 Attach 150 | . 8 . 11 2 7 . 11 6 6 13 6 14 3 3 4 13 16 13 8 6 Detach 15 | . . . . . 2 . 5 . . 2 . 1 . . . . 3 1 1 . Swap 236 | . 14 . 4 1 16 . 21 12 18 4 5 46 2 7 7 5 24 15 30 5 Drop 342 | . 11 1 19 . 31 . 26 6 33 15 19 40 3 9 15 1 39 43 22 9 Fire 1549 | 6 100 . 95 34 88 4 220 63 101 104 25 163 13 44 . 52 134 167 76 60 Melee 51 | . . . . . . . . . . 7 6 4 . . 1 . 33 . . . Ram 3 | . . . . . . . . . 1 . . . . . . . 2 . . . Kick . | . . . . . . . . . . . . . . . . . . . . . Crush 27 | . . . . . 23 . 1 . . 1 . . . . . . . 1 1 . Escape Stasis 43 | . . . . . . . . 8 . 22 . 2 . . . . . 9 . 2 Rewire 5 | . . . . 5 . . . . . . . . . . . . . . . . Trap 10 | . . . . . . . . . . . . . . . 7 3 . . . . Miscellaneous 3 | . . . . . . . . . . . . 1 . . . . 1 1 . . Route ------- -11/Scrapyard -10/Materials (discovered 5 exits: *Mat x3 / *Min x2) -10/Mines -9/Materials (discovered 2 exits: *Mat / *Min) -9/Mines -9/Exiles -8/Mines -8/Materials (discovered 2 exits: *Fac / Gar) -8/Garrison -7/Factory (discovered 2 exits: [*Sto] / Gar) -7/Garrison (discovered 2 exits: *Fac x2) -7/Factory (discovered 2 exits: *Fac / [*Low]) -6/Factory (discovered 4 exits: *Fac x2 / *Low x2) -6/Lower Caves -6/Lower Caves (discovered 2 exits: *Fac / *Dat) -6/Data Miner -5/Proximity Caves -5/Factory (discovered 8 exits: *Fac x2 / *Upp x2 / Ext x2 / Gar / Gar) -5/Garrison (discovered 3 exits: *Fac x3) -5/Factory (discovered 5 exits: *Upp x2 / Ext x2 / Gar) -5/Garrison (discovered 1 exit: *Fac) History --------- Turn | Location | Event 9 | -11/Scrapyard | Discovered new exit (range 16) 148 | -11/Scrapyard | Entered Materials 301 | -10/Materials | Build established: Mutant 352 | -10/Materials | Discovered new exit (range 3) 452 | -10/Materials | Identified exit to Mines 926 | -10/Materials | Discovered new exit (range 13) 1273 | -10/Materials | Discovered new exit (range 22) 1584 | -10/Materials | Discovered new exit (range 15) 1704 | -10/Materials | Entered Mines 1704 | -10/Mines | Accompanied by 1 ally 1721 | -10/Mines | Discovered new exit (range 10) 1724 | -10/Mines | Met a Derelict bent on vengeance 1738 | -10/Mines | Met a Derelict who couldn't figure out how to use a Trap Extractor 1832 | -10/Mines | Entered Materials 1832 | -9/Materials | Accompanied by 1 ally 1832 | -9/Materials | Evolved 2 slots: Utility x2 2161 | -9/Materials | Build established: Hauler-Mutant 2284 | -9/Materials | Identified exit to Mines 2665 | -9/Materials | Lost 3 parts (1p1n1u) 3130 | -9/Materials | Core integrity fell below 50% 3297 | -9/Materials | Repaired Lgt. Nuclear Core 3324 | -9/Materials | Repaired Lgt. Treads 3344 | -9/Materials | Discovered new exit (range 7) 3628 | -9/Materials | Entered Mines 3628 | -9/Mines | Accompanied by 1 ally 3629 | -9/Mines | Assembled infested the area 4021 | -9/Mines | Learned location of Storage (-7) 4424 | -9/Mines | Discovered new exit (range 5) 4431 | -9/Mines | Entered Exiles 4614 | -9/Exiles | Met 8R-AWN 4645 | -9/Exiles | Met EX-HEX 4722 | -9/Exiles | Met EX-DEC 4756 | -9/Exiles | Learned location of Zion (-7) 4897 | -9/Exiles | Met EX-BIN 4927 | -9/Exiles | Aligned with FarCom system 4929 | -9/Exiles | Given EX-Vault access code 4970 | -9/Exiles | Opened EX-Vault 4979 | -9/Exiles | Found Deploy-a-Sentry 4982 | -9/Exiles | Found Deploy-a-Sentry 4985 | -9/Exiles | Found Deploy-a-Sentry 4991 | -9/Exiles | Found Gui. Plasma Cannon 5002 | -9/Exiles | Found Supersonic Drone Bay 5042 | -9/Exiles | Warned to stay clear of 0b10 Research branches 5162 | -9/Exiles | DAS Turret deployed 5450 | -9/Exiles | Attacked by the Exiles 5498 | -9/Exiles | Core integrity fell below 20% 5597 | -9/Exiles | Build established: Scavenger-Mutant 5635 | -9/Exiles | Lost 6 parts (1p1n2u2w) 5640 | -9/Exiles | Destroyed 8R-AWN 5647 | -9/Exiles | Found Prototype Ballistic Gun 5647 | -9/Exiles | Identified 8R-AWN's Boregun 5666 | -9/Exiles | Found Prototype Device 5666 | -9/Exiles | Identified AS-neutralizer No. 17b 5678 | -9/Exiles | Found 8R-AWN's Boregun 6075 | -9/Exiles | Found Prototype Processor 6456 | -9/Exiles | Destroyed EX-BIN 6456 | -9/Exiles | Destroyed EX-HEX 6468 | -9/Exiles | Destroyed EX-DEC 6572 | -9/Exiles | Found Deploy-a-Sentry 6938 | -9/Exiles | Discovered new exit (range 14) 6966 | -9/Exiles | Stole three prototypes: Supersonic Drone Bay, Gui. Plasma Cannon, Deploy-a-Sentry 6966 | -9/Exiles | Entered Mines 7148 | -8/Mines | Discovered new exit (range 9) 7179 | -8/Mines | Entered Materials 7179 | -8/Materials | Evolved 2 slots: Utility x2 7928 | -8/Materials | Identified Exp. Targeting Computer 8725 | -8/Materials | Discovered new exit (range 11) 9000 | -8/Materials | Build established: Hauler-Mutant 9314 | -8/Materials | Garrison activated, responded to threat 9326 | -8/Materials | Core integrity fell below 50% 9490 | -8/Materials | Identified exit to Garrison 9510 | -8/Materials | Entered Garrison 9662 | -8/Garrison | Lost 3 parts (2p1u) 9688 | -8/Garrison | Destroyed 9 combat bots 9704 | -8/Garrison | Triggered checkpoint 9835 | -8/Garrison | Discovered new exit (range 9) 9863 | -8/Garrison | Installed Relay Interface Framework 9936 | -8/Garrison | Triggered checkpoint 10058 | -8/Garrison | Garrison Relay disabled 10584 | -8/Garrison | Triggered checkpoint 10790 | -8/Garrison | Triggered checkpoint 10801 | -8/Garrison | Core integrity fell below 20% 10931 | -8/Garrison | Garrison Relay disabled 11913 | -8/Garrison | Entered Factory 11913 | -7/Factory | Evolved 2 slots: Power x1, Utility x1 12306 | -7/Factory | Build established: Scavenger-Mutant 12717 | -7/Factory | Build established: Hauler-Mutant 12927 | -7/Factory | Discovered new exit (range 12) 13597 | -7/Factory | Garrison activated, responded to threat 13814 | -7/Factory | Identified exit to Garrison 13824 | -7/Factory | Entered Garrison 13831 | -7/Garrison | Expanded RIF knowledge: Robot Detection 13860 | -7/Garrison | Triggered checkpoint 13938 | -7/Garrison | Lost 3 parts (1u2w) 13948 | -7/Garrison | Garrison Relay disabled 14072 | -7/Garrison | Triggered checkpoint 14121 | -7/Garrison | Destroyed 9 combat bots 14147 | -7/Garrison | Lost 5 parts (1p1n2u1w) 14186 | -7/Garrison | Triggered checkpoint 14200 | -7/Garrison | Triggered checkpoint 14220 | -7/Garrison | Core integrity fell below 50% 14238 | -7/Garrison | Lost 3 parts (1n1u1w) 14280 | -7/Garrison | Discovered new exit (range 10) 14581 | -7/Garrison | Discovered new exit (range 9) 14610 | -7/Garrison | Triggered checkpoint 14637 | -7/Garrison | Garrison Relay disabled 14752 | -7/Garrison | Build established: Bothacker-Mutant 14876 | -7/Garrison | Triggered checkpoint 14937 | -7/Garrison | Lost 3 parts (1n1u1w) 14943 | -7/Garrison | Garrison Relay disabled 15025 | -7/Garrison | Entered Factory 15238 | -7/Factory | Discovered new exit (range 15) 15757 | -7/Factory | Garrison activated, responded to threat 15792 | -7/Factory | Discovered new exit (range 11) 16076 | -7/Factory | Entered another Factory area 16076 | -6/Factory | Accompanied by 3 allies 16076 | -6/Factory | Evolved 2 slots: Utility x2 16749 | -6/Factory | DAS Turret deployed 17277 | -6/Factory | Found Prototype Processor 17277 | -6/Factory | Identified Exp. Signal Interpreter 17741 | -6/Factory | Discovered new exit (range 11) 17753 | -6/Factory | Identified exit to Factory 17966 | -6/Factory | Discovered exit to Factory (range 16) 18196 | -6/Factory | Allied Derelicts emerged from ambush trap array 18217 | -6/Factory | Fabricated Hcp. Storage Unit (x1) 18626 | -6/Factory | Fabricated Hcp. Storage Unit? 18800 | -6/Factory | Identified exit to Lower Caves 19014 | -6/Factory | Spotted B-75 Beast 19166 | -6/Factory | Garrison activated, responded to threat 19198 | -6/Factory | Lost 3 parts (1p2u) 19418 | -6/Factory | Lost 4 parts (1p1n2u) 19926 | -6/Factory | First assault squad dispatched 20022 | -6/Factory | Entered Lower Caves 20022 | -6/Lower Caves | Accompanied by 2 allies 20027 | -6/Lower Caves | Encountered a Warlord checkpoint 20057 | -6/Lower Caves | Learned 8 Factory zone layouts 20256 | -6/Lower Caves | Identified exit to Lower Caves 20830 | -6/Lower Caves | Entered another Lower Caves area 20830 | -6/Lower Caves | Accompanied by 3 allies 20948 | -6/Lower Caves | Discovered exit to Factory (range 10) 21009 | -6/Lower Caves | Build established: Hauler-Mutant 21081 | -6/Lower Caves | Attracted the attention of an 0b10 checkpoint 21156 | -6/Lower Caves | Spotted OG-N56(f) 21158 | -6/Lower Caves | Encountered a Master Thief 21159 | -6/Lower Caves | Supersonic Drone Bay stolen by Master Thief 21161 | -6/Lower Caves | Spotted PZ-6JC(f) 21162 | -6/Lower Caves | Encountered a Master Thief 21168 | -6/Lower Caves | Deploy-a-Sentry stolen by Master Thief 21169 | -6/Lower Caves | Destroyed PZ-6JC(f) 21175 | -6/Lower Caves | Spotted XA-NGY(f) 21176 | -6/Lower Caves | Encountered a Master Thief 21176 | -6/Lower Caves | Spotted 2X-WQV(f) 21177 | -6/Lower Caves | Encountered a Master Thief 21177 | -6/Lower Caves | Gui. Plasma Cannon stolen by Master Thief 21178 | -6/Lower Caves | Destroyed XA-NGY(f) 21193 | -6/Lower Caves | Destroyed 2X-WQV(f) 21237 | -6/Lower Caves | Spotted 1F-1W5(f) 21238 | -6/Lower Caves | Encountered a Master Thief 21247 | -6/Lower Caves | Destroyed 1F-1W5(f) 21460 | -6/Lower Caves | Discovered new exit (range 5) 21556 | -6/Lower Caves | Entered Data Miner 21556 | -6/Data Miner | Accompanied by 1 ally 21556 | -6/Data Miner | Discovered new exit (range 6) 21593 | -6/Data Miner | Met Data Miner 21634 | -6/Data Miner | DAS Turret deployed 21654 | -6/Data Miner | Learned location of Section 7 (-2) 21654 | -6/Data Miner | Acquired the access code to Warlord's prototype stash 21755 | -6/Data Miner | Received God Mode back door access code from Data Miner 22133 | -6/Data Miner | Data Conduit disabled 22464 | -6/Data Miner | Entered Proximity Caves 22464 | -5/Proximity Caves | Accompanied by 1 ally 22541 | -5/Proximity Caves | Learned Factory trap positions 22587 | -5/Proximity Caves | Core integrity fell below 50% 22626 | -5/Proximity Caves | Lost 3 parts (1p1n1u) 22795 | -5/Proximity Caves | Attracted the attention of an 0b10 checkpoint 22899 | -5/Proximity Caves | Lost 6 parts (1n2u3w) 22950 | -5/Proximity Caves | Learned Factory stockpile data 23008 | -5/Proximity Caves | Spotted B-75 Beast 23198 | -5/Proximity Caves | Core integrity fell below 20% 23226 | -5/Proximity Caves | Lost 5 parts (1p1n1u2w) 23364 | -5/Proximity Caves | Discovered exit to Factory (range 18) 23468 | -5/Proximity Caves | Lost 4 parts (1p1n2w) 23545 | -5/Proximity Caves | Entered Factory 23545 | -5/Factory | Evolved 2 slots: Propulsion x1, Utility x1 23546 | -5/Factory | Identified exit to Factory 23546 | -5/Factory | Identified exit to Upper Caves 23547 | -5/Factory | Loaded intel: 115 trap records 23845 | -5/Factory | Discovered exit to Upper Caves (range 15) 24173 | -5/Factory | Found Imp. Powered Armor 24177 | -5/Factory | Found Imp. Powered Armor 24182 | -5/Factory | Found Imp. Powered Armor 24371 | -5/Factory | Found Imp. Powered Armor 24774 | -5/Factory | Identified exit to Garrison 24880 | -5/Factory | Lost 4 parts (3n1u) 24963 | -5/Factory | Garrison activated, responded to threat 25029 | -5/Factory | Lost 3 parts (1p2n) 25167 | -5/Factory | Garrison activated, responded to threat 25188 | -5/Factory | Destroyed 8 combat bots 25194 | -5/Factory | Lost 4 parts (2p1n1w) 25350 | -5/Factory | Build established: Bothacker-Mutant 25437 | -5/Factory | Lost 3 parts (1n1u1w) 25480 | -5/Factory | Crushed by falling debris 25480 | -5/Factory | System corruption reached 10% 25511 | -5/Factory | Lost 3 parts (1n1u1w) 25716 | -5/Factory | Discovered exit to Factory (range 16) 25791 | -5/Factory | Build established: Scavenger-Mutant 25910 | -5/Factory | Identified exit to Extension 25945 | -5/Factory | First assault squad dispatched 25977 | -5/Factory | Fabricated Exp. Flexi-carbon Leg? 25989 | -5/Factory | Repaired Adv. Weapon Cycler? 26168 | -5/Factory | Garrison activated, responded to threat 26240 | -5/Factory | Local fabrication network quarantined 26436 | -5/Factory | Identified exit to Garrison 26465 | -5/Factory | Entered Garrison 26502 | -5/Garrison | Triggered checkpoint 26526 | -5/Garrison | Build established: Bothacker-Mutant 26549 | -5/Garrison | Garrison Relay disabled 26731 | -5/Garrison | Spotted B-75 Beast 26742 | -5/Garrison | Triggered checkpoint 26744 | -5/Garrison | Triggered checkpoint 26752 | -5/Garrison | Discovered new exit (range 29) 26784 | -5/Garrison | Triggered checkpoint 26815 | -5/Garrison | Core integrity fell below 50% 27205 | -5/Garrison | Lost 3 parts (2p1u) 27274 | -5/Garrison | Destroyed B-75 Beast 27873 | -5/Garrison | Discovered new exit (range 14) 27930 | -5/Garrison | Expanded RIF knowledge: Alert ID Control 28174 | -5/Garrison | Found Quantum Capacitor 28260 | -5/Garrison | Triggered checkpoint 28306 | -5/Garrison | Triggered checkpoint 28331 | -5/Garrison | Garrison Relay disabled 28624 | -5/Garrison | Triggered checkpoint 28631 | -5/Garrison | Garrison Relay disabled 28666 | -5/Garrison | Triggered checkpoint 28804 | -5/Garrison | Discovered new exit (range 15) 28979 | -5/Garrison | Triggered checkpoint 29173 | -5/Garrison | Garrison Relay disabled 29315 | -5/Garrison | Entered Factory 31087 | -5/Factory | Found Powered Armor 31223 | -5/Factory | Found Powered Armor 31226 | -5/Factory | Found Powered Armor 31415 | -5/Factory | First assault squad dispatched 31453 | -5/Factory | Core integrity fell below 20% 31460 | -5/Factory | Identified exit to Garrison 31460 | -5/Factory | Entered Garrison 31472 | -5/Garrison | Triggered checkpoint 31477 | -5/Garrison | Lost 3 parts (1n1u1w) 31576 | -5/Garrison | System corruption reached 30% 31582 | -5/Garrison | Triggered checkpoint 31704 | -5/Garrison | Lost 3 parts (2p1u) 31872 | -5/Garrison | Triggered checkpoint 31878 | -5/Garrison | Garrison Relay disabled 32041 | -5/Garrison | Discovered exit to Factory (range 8) 32068 | -5/Garrison | Expanded RIF knowledge: Program Shield 32235 | -5/Garrison | Triggered checkpoint 32249 | -5/Garrison | Triggered checkpoint 32285 | -5/Garrison | Destroyed by S-27 Virus with Autogun Last Messages --------------- 32250_ Slug penetrates Wall. 32250_ System corrupted: Lrn. Proton Cannon targeting data glitched. 32250_ Adv. Heat Sink fried. 32250_ G-50 Soldier destroyed. 32251_ Extracted 61 energy. 32253_ Destroyed Hvy. Laser. 32253_ System corrupted: Lrn. Proton Cannon targeting data glitched. 32254_ Extracted 61 energy. 32256_ Acquired Lrg. Battery. 32259_ Acquired 9 matter. 32262_ JNFT